[Event "Early-Titled-Tuesday-Blitz-July-09-2024"]
[Site "Chess.com"]
[Date "2024.07.09"]
[Round "8"]
[White "VacheH009"]
[Black "Paladin61"]
[Result "1/2-1/2"]
[WhiteElo "2526"]
[BlackElo "2726"]
[TimeControl "180+1"]
[EndTime "9:30:47 PDT"]
[Termination "Game drawn by repetition"]

1. c4 {[%clk 0:03:00.9]} 1... Nf6 {[%clk 0:02:45.6]} 2. Nc3 {[%clk 0:02:58.9]}
2... g6 {[%clk 0:02:33.4]} 3. Nf3 {[%clk 0:02:50]} 3... Bg7 {[%clk 0:02:33.2]}
4. g3 {[%clk 0:02:49.4]} 4... O-O {[%clk 0:02:33.1]} 5. Bg2 {[%clk 0:02:49.1]}
5... d6 {[%clk 0:02:29.4]} 6. O-O {[%clk 0:02:47.8]} 6... e5 {[%clk 0:02:22.5]}
7. d3 {[%clk 0:02:47.2]} 7... h6 {[%clk 0:02:19.8]} 8. Rb1 {[%clk 0:02:44.2]}
8... a5 {[%clk 0:02:19.5]} 9. a3 {[%clk 0:02:43.8]} 9... c6 {[%clk 0:02:05.8]}
10. b4 {[%clk 0:02:43]} 10... axb4 {[%clk 0:02:06.7]} 11. axb4 {[%clk
0:02:43.9]} 11... Re8 {[%clk 0:02:07.2]} 12. b5 {[%clk 0:02:38.2]} 12... d5
{[%clk 0:02:06.7]} 13. bxc6 {[%clk 0:02:38]} 13... bxc6 {[%clk 0:02:07.6]} 14.
cxd5 {[%clk 0:02:37.8]} 14... cxd5 {[%clk 0:02:08.5]} 15. Ne1 {[%clk 0:02:08.2]}
15... Be6 {[%clk 0:02:03]} 16. Nc2 {[%clk 0:02:06.7]} 16... Nc6 {[%clk
0:02:00.5]} 17. Nb4 {[%clk 0:02:00.4]} 17... Ne7 {[%clk 0:01:59.5]} 18. Bb2
{[%clk 0:01:43.7]} 18... Qd7 {[%clk 0:01:57.7]} 19. Qd2 {[%clk 0:01:37.6]} 19...
Rac8 {[%clk 0:01:50.6]} 20. Rfc1 {[%clk 0:01:35.2]} 20... h5 {[%clk 0:01:38.6]}
21. Ra1 {[%clk 0:01:21.1]} 21... h4 {[%clk 0:01:36.6]} 22. Na4 {[%clk
0:01:19.9]} 22... Qd6 {[%clk 0:01:18.4]} 23. Ba3 {[%clk 0:01:08.8]} 23... Rxc1+
{[%clk 0:01:07.7]} 24. Qxc1 {[%clk 0:01:09.7]} 24... Qd8 {[%clk 0:01:05.5]} 25.
Nc5 {[%clk 0:01:03.8]} 25... Bc8 {[%clk 0:01:05.3]} 26. Bb2 {[%clk 0:00:59.1]}
26... Nf5 {[%clk 0:00:52.2]} 27. Ra8 {[%clk 0:00:46.3]} 27... hxg3 {[%clk
0:00:46.9]} 28. hxg3 {[%clk 0:00:45.2]} 28... e4 {[%clk 0:00:42.3]} 29. dxe4
{[%clk 0:00:13.6]} 29... dxe4 {[%clk 0:00:43.2]} 30. Nb7 {[%clk 0:00:13.6]}
30... Qd7 {[%clk 0:00:39.7]} 31. Bxf6 {[%clk 0:00:13.7]} 31... Qxb7 {[%clk
0:00:36.7]} 32. Bxg7 {[%clk 0:00:06.1]} 32... Nxg7 {[%clk 0:00:31.7]} 33. Qc6
{[%clk 0:00:02.6]} 33... Qxc6 {[%clk 0:00:16.4]} 34. Nxc6 {[%clk 0:00:03.5]}
34... Kf8 {[%clk 0:00:12.3]} 35. Bxe4 {[%clk 0:00:03.2]} 35... Ne6 {[%clk
0:00:07.2]} 36. Bg2 {[%clk 0:00:02.7]} 36... Nc5 {[%clk 0:00:05.4]} 37. Nd4
{[%clk 0:00:02.5]} 37... Ne6 {[%clk 0:00:03.5]} 38. Nxe6+ {[%clk 0:00:02]} 38...
Bxe6 {[%clk 0:00:02.5]} 39. Bc6 {[%clk 0:00:02.5]} 39... Rxa8 {[%clk 0:00:02.5]}
40. Bxa8 {[%clk 0:00:03.4]} 40... Ke7 {[%clk 0:00:03]} 41. f3 {[%clk 0:00:03.5]}
41... g5 {[%clk 0:00:03.3]} 42. Be4 {[%clk 0:00:03.8]} 42... f6 {[%clk
0:00:03.5]} 43. Bd3 {[%clk 0:00:04]} 43... Kd6 {[%clk 0:00:03.9]} 44. Kf2 {[%clk
0:00:04.6]} 44... Ke5 {[%clk 0:00:03.7]} 45. Ke3 {[%clk 0:00:05]} 45... Bf7
{[%clk 0:00:03]} 46. Kd2 {[%clk 0:00:04.3]} 46... Kd6 {[%clk 0:00:02.6]} 47. e3
{[%clk 0:00:04.6]} 47... Ke5 {[%clk 0:00:03.5]} 48. Kc3 {[%clk 0:00:05.1]} 48...
Kd6 {[%clk 0:00:03.9]} 49. Kd4 {[%clk 0:00:06]} 49... Be6 {[%clk 0:00:03.9]} 50.
Be4 {[%clk 0:00:05.4]} 50... Bd7 {[%clk 0:00:04.1]} 51. Bd5 {[%clk 0:00:04.2]}
51... Bc8 {[%clk 0:00:04.5]} 52. Be4 {[%clk 0:00:04]} 52... Bd7 {[%clk
0:00:04.9]} 53. Bd5 {[%clk 0:00:04.2]} 53... Bf5 {[%clk 0:00:05]} 54. e4 {[%clk
0:00:04.5]} 54... Bd7 {[%clk 0:00:05.2]} 55. Ke3 {[%clk 0:00:04.8]} 55... Bc8
{[%clk 0:00:05.2]} 56. Kd4 {[%clk 0:00:05]} 56... Bd7 {[%clk 0:00:05.6]} 57. Kc4
{[%clk 0:00:03]} 57... Bc8 {[%clk 0:00:05.8]} 58. Kd3 {[%clk 0:00:03.6]} 58...
Kc5 {[%clk 0:00:05.4]} 59. Ke3 {[%clk 0:00:03.8]} 59... Kd6 {[%clk 0:00:05.3]}
60. Kf2 {[%clk 0:00:03.9]} 60... Ke5 {[%clk 0:00:05.4]} 61. Ke3 {[%clk
0:00:03.2]} 61... Kd6 {[%clk 0:00:05.7]} 1/2-1/2

[Event "Early-Titled-Tuesday-Blitz-July-09-2024"]
[Site "Chess.com"]
[Date "2024.07.09"]
[Round "8"]
[White "aquarium76"]
[Black "Sadykov_Ramil"]
[Result "1/2-1/2"]
[WhiteElo "2981"]
[BlackElo "2629"]
[TimeControl "180+1"]
[EndTime "9:30:48 PDT"]
[Termination "Game drawn by repetition"]

1. e4 {[%clk 0:03:00.9]} 1... e5 {[%clk 0:02:59]} 2. Nf3 {[%clk 0:03:01]} 2...
Nc6 {[%clk 0:02:58]} 3. Bb5 {[%clk 0:03:00.9]} 3... Nf6 {[%clk 0:02:56.7]} 4.
O-O {[%clk 0:02:58.4]} 4... Nxe4 {[%clk 0:02:56.3]} 5. d4 {[%clk 0:02:58.6]}
5... Nd6 {[%clk 0:02:55.9]} 6. Bxc6 {[%clk 0:02:59.1]} 6... dxc6 {[%clk
0:02:56.8]} 7. dxe5 {[%clk 0:02:59.7]} 7... Nf5 {[%clk 0:02:57.2]} 8. Qxd8+
{[%clk 0:02:59.9]} 8... Kxd8 {[%clk 0:02:58.1]} 9. Nc3 {[%clk 0:02:59.5]} 9...
Be7 {[%clk 0:02:54.2]} 10. Bf4 {[%clk 0:02:59]} 10... Be6 {[%clk 0:02:34.1]} 11.
Rad1+ {[%clk 0:02:58]} 11... Ke8 {[%clk 0:02:29.2]} 12. Ng5 {[%clk 0:02:26.3]}
12... Bxg5 {[%clk 0:01:28.1]} 13. Bxg5 {[%clk 0:02:27.2]} 13... h6 {[%clk
0:01:28.8]} 14. Bc1 {[%clk 0:02:21.8]} 14... Rd8 {[%clk 0:01:23.3]} 15. f3
{[%clk 0:00:48.8]} 15... Rxd1 {[%clk 0:01:07.8]} 16. Rxd1 {[%clk 0:00:48.5]}
16... Ke7 {[%clk 0:01:08]} 17. b3 {[%clk 0:00:44.3]} 17... Rd8 {[%clk
0:01:03.4]} 18. Ba3+ {[%clk 0:00:40.7]} 18... Ke8 {[%clk 0:01:02.9]} 19. Rxd8+
{[%clk 0:00:39.6]} 19... Kxd8 {[%clk 0:01:02.9]} 20. Ne2 {[%clk 0:00:40.3]}
20... b6 {[%clk 0:00:34.6]} 21. g4 {[%clk 0:00:40.1]} 21... Ne3 {[%clk
0:00:20.4]} 22. c3 {[%clk 0:00:26.8]} 22... c5 {[%clk 0:00:17.3]} 23. Kf2 {[%clk
0:00:23.1]} 23... Nd5 {[%clk 0:00:13.9]} 24. c4 {[%clk 0:00:21.9]} 24... Ne7
{[%clk 0:00:12.4]} 25. Bb2 {[%clk 0:00:19.5]} 25... a5 {[%clk 0:00:09.7]} 26.
Nf4 {[%clk 0:00:17.3]} 26... Kd7 {[%clk 0:00:01.9]} 27. Nh5 {[%clk 0:00:16.7]}
27... g6 {[%clk 0:00:01.4]} 28. Nf6+ {[%clk 0:00:17]} 28... Kc6 {[%clk
0:00:01.8]} 29. h4 {[%clk 0:00:16.2]} 29... g5 {[%clk 0:00:01.8]} 30. h5 {[%clk
0:00:11.9]} 30... a4 {[%clk 0:00:01.6]} 31. Bc1 {[%clk 0:00:10.7]} 31... axb3
{[%clk 0:00:01.6]} 32. axb3 {[%clk 0:00:10.9]} 32... b5 {[%clk 0:00:02.2]} 33.
f4 {[%clk 0:00:11]} 33... bxc4 {[%clk 0:00:01.2]} 34. bxc4 {[%clk 0:00:10.8]}
34... gxf4 {[%clk 0:00:01.4]} 35. Bxf4 {[%clk 0:00:10.7]} 35... Bxc4 {[%clk
0:00:01.9]} 36. Bxh6 {[%clk 0:00:11.1]} 36... Bd3 {[%clk 0:00:02.3]} 37. Bf8
{[%clk 0:00:05.4]} 37... Nd5 {[%clk 0:00:02.1]} 38. g5 {[%clk 0:00:03.8]} 38...
Nxf6 {[%clk 0:00:01.7]} 39. exf6 {[%clk 0:00:03.6]} 39... Kd5 {[%clk 0:00:02]}
40. Ke3 {[%clk 0:00:03.6]} 40... c4 {[%clk 0:00:02.1]} 41. Kf4 {[%clk
0:00:02.5]} 41... Ke6 {[%clk 0:00:02.4]} 42. Bb4 {[%clk 0:00:02.2]} 42... Be2
{[%clk 0:00:02.5]} 43. g6 {[%clk 0:00:01.7]} 43... fxg6 {[%clk 0:00:02.3]} 44.
h6 {[%clk 0:00:02.2]} 44... g5+ {[%clk 0:00:02.2]} 45. Kxg5 {[%clk 0:00:02.3]}
45... Bd3 {[%clk 0:00:02.6]} 46. Bc3 {[%clk 0:00:02.9]} 46... Kf7 {[%clk
0:00:03]} 47. Bd4 {[%clk 0:00:01.3]} 47... Bc2 {[%clk 0:00:02.9]} 48. Bc3 {[%clk
0:00:01.6]} 48... Bh7 {[%clk 0:00:03.8]} 49. Be5 {[%clk 0:00:02]} 49... Bd3
{[%clk 0:00:04.6]} 50. Kf4 {[%clk 0:00:01.8]} 50... Kg6 {[%clk 0:00:04.1]} 51.
Ke3 {[%clk 0:00:02.3]} 51... Kf7 {[%clk 0:00:04.3]} 52. Kd4 {[%clk 0:00:02]}
52... Bh7 {[%clk 0:00:05.2]} 53. Kc5 {[%clk 0:00:01.9]} 53... Bg6 {[%clk
0:00:06.1]} 54. Kc6 {[%clk 0:00:01.9]} 54... c3 {[%clk 0:00:05.5]} 55. Bxc3
{[%clk 0:00:01.9]} 55... Bh7 {[%clk 0:00:06.4]} 56. Kxc7 {[%clk 0:00:02.4]}
56... Kg6 {[%clk 0:00:06]} 57. Kd6 {[%clk 0:00:02.6]} 57... Kf7 {[%clk
0:00:02.8]} 58. Ke5 {[%clk 0:00:02.8]} 58... Bg6 {[%clk 0:00:03.1]} 59. Bd4
{[%clk 0:00:03.2]} 59... Bh7 {[%clk 0:00:03.6]} 60. Kf4 {[%clk 0:00:03.3]} 60...
Bg6 {[%clk 0:00:04.3]} 61. Kg5 {[%clk 0:00:04.2]} 61... Bh7 {[%clk 0:00:04.8]}
62. Be5 {[%clk 0:00:04.5]} 62... Bg6 {[%clk 0:00:05.1]} 63. Kf4 {[%clk
0:00:05.1]} 63... Bh7 {[%clk 0:00:05.7]} 64. Bd4 {[%clk 0:00:05.8]} 64... Bg6
{[%clk 0:00:06.3]} 65. Ke5 {[%clk 0:00:06.6]} 65... Bh7 {[%clk 0:00:06.9]} 66.
Kf4 {[%clk 0:00:06.9]} 1/2-1/2

[Event "Early-Titled-Tuesday-Blitz-July-09-2024"]
[Site "Chess.com"]
[Date "2024.07.09"]
[Round "8"]
[White "Flawless_Fighter"]
[Black "Erdnya15"]
[Result "1-0"]
[WhiteElo "2780"]
[BlackElo "2591"]
[TimeControl "180+1"]
[EndTime "9:30:48 PDT"]
[Termination "Flawless_Fighter won by checkmate"]

1. Nf3 {[%clk 0:03:00.9]} 1... Nf6 {[%clk 0:02:57.1]} 2. g3 {[%clk 0:03:01]}
2... g6 {[%clk 0:02:57.5]} 3. Bg2 {[%clk 0:03:01]} 3... Bg7 {[%clk 0:02:57.9]}
4. O-O {[%clk 0:03:01.5]} 4... O-O {[%clk 0:02:58.1]} 5. d4 {[%clk 0:03:01.9]}
5... d5 {[%clk 0:02:56.7]} 6. Nbd2 {[%clk 0:03:02]} 6... c6 {[%clk 0:02:54.1]}
7. a4 {[%clk 0:03:02.1]} 7... Bf5 {[%clk 0:02:53.1]} 8. Nh4 {[%clk 0:03:00.2]}
8... Be6 {[%clk 0:02:42]} 9. c3 {[%clk 0:03:00.1]} 9... Nbd7 {[%clk 0:02:41.3]}
10. Re1 {[%clk 0:02:58.3]} 10... c5 {[%clk 0:02:37.2]} 11. Ndf3 {[%clk
0:02:45.3]} 11... Ne4 {[%clk 0:02:22]} 12. Ng5 {[%clk 0:02:43.1]} 12... Nxg5
{[%clk 0:02:21.7]} 13. Bxg5 {[%clk 0:02:44]} 13... cxd4 {[%clk 0:02:20.7]} 14.
cxd4 {[%clk 0:02:43.3]} 14... h6 {[%clk 0:02:20.6]} 15. Be3 {[%clk 0:02:42.5]}
15... Qb6 {[%clk 0:02:18.4]} 16. Qd2 {[%clk 0:02:42.6]} 16... Nf6 {[%clk
0:02:14.9]} 17. a5 {[%clk 0:02:25.8]} 17... Qb5 {[%clk 0:02:12.1]} 18. Bxh6
{[%clk 0:02:23.9]} 18... Bxh6 {[%clk 0:02:08.1]} 19. Qxh6 {[%clk 0:02:24.8]}
19... Qxb2 {[%clk 0:02:04.6]} 20. Nf3 {[%clk 0:02:18.5]} 20... Bf5 {[%clk
0:01:50.9]} 21. h3 {[%clk 0:02:08.3]} 21... Be4 {[%clk 0:01:43.2]} 22. e3 {[%clk
0:02:04.6]} 22... Bxf3 {[%clk 0:01:18.4]} 23. Bxf3 {[%clk 0:02:05.5]} 23... Ne4
{[%clk 0:01:18.5]} 24. Bxe4 {[%clk 0:01:57]} 24... dxe4 {[%clk 0:01:19.4]} 25.
Reb1 {[%clk 0:01:48.4]} 25... Qc3 {[%clk 0:01:17.1]} 26. Qf4 {[%clk 0:01:48]}
26... Qc6 {[%clk 0:01:08.1]} 27. Rc1 {[%clk 0:01:45.2]} 27... Qe6 {[%clk
0:01:04.4]} 28. Kg2 {[%clk 0:01:39.6]} 28... Rfc8 {[%clk 0:01:02.5]} 29. h4
{[%clk 0:01:35.1]} 29... b6 {[%clk 0:00:55.1]} 30. a6 {[%clk 0:01:31.6]} 30...
b5 {[%clk 0:00:50.3]} 31. Rc7 {[%clk 0:01:27]} 31... Rxc7 {[%clk 0:00:40.3]} 32.
Qxc7 {[%clk 0:01:27.9]} 32... Qb6 {[%clk 0:00:10.3]} 33. Qxe7 {[%clk 0:01:23.8]}
33... b4 {[%clk 0:00:10.2]} 34. Qxe4 {[%clk 0:01:23.4]} 34... Rb8 {[%clk
0:00:07.9]} 35. Qd3 {[%clk 0:01:11.7]} 35... b3 {[%clk 0:00:06]} 36. Rb1 {[%clk
0:01:12.1]} 36... b2 {[%clk 0:00:03.8]} 37. d5 {[%clk 0:01:12.2]} 37... Qc5
{[%clk 0:00:02]} 38. e4 {[%clk 0:01:10.5]} 38... Qc1 {[%clk 0:00:02]} 39. d6
{[%clk 0:01:07.4]} 39... Rb3 {[%clk 0:00:01.3]} 40. Rxc1 {[%clk 0:00:55.3]}
40... Rxd3 {[%clk 0:00:01.7]} 41. Rb1 {[%clk 0:00:41.2]} 41... Rxd6 {[%clk
0:00:02.2]} 42. Rxb2 {[%clk 0:00:41.8]} 42... Rxa6 {[%clk 0:00:02.9]} 43. Rb8+
{[%clk 0:00:42]} 43... Kg7 {[%clk 0:00:03.2]} 44. Rb7 {[%clk 0:00:42.7]} 44...
Ra1 {[%clk 0:00:03.7]} 45. e5 {[%clk 0:00:42.6]} 45... Kg8 {[%clk 0:00:04.4]}
46. f4 {[%clk 0:00:41.9]} 46... a5 {[%clk 0:00:03.1]} 47. Ra7 {[%clk 0:00:42.2]}
47... a4 {[%clk 0:00:03.1]} 48. Kh3 {[%clk 0:00:42.8]} 48... a3 {[%clk
0:00:02.5]} 49. Kg4 {[%clk 0:00:43]} 49... a2 {[%clk 0:00:02.5]} 50. Ra8+ {[%clk
0:00:38.5]} 50... Kg7 {[%clk 0:00:02.3]} 51. Ra6 {[%clk 0:00:39.3]} 51... Kg8
{[%clk 0:00:01.7]} 52. Ra7 {[%clk 0:00:39.9]} 52... Kf8 {[%clk 0:00:01.5]} 53.
Kg5 {[%clk 0:00:40.2]} 53... Rg1 {[%clk 0:00:01.1]} 54. Rxa2 {[%clk 0:00:40.8]}
54... Rxg3+ {[%clk 0:00:02]} 55. Kf6 {[%clk 0:00:41.4]} 55... Kg8 {[%clk
0:00:01.5]} 56. Ra8+ {[%clk 0:00:41.6]} 56... Kh7 {[%clk 0:00:01.7]} 57. Ra7
{[%clk 0:00:40.9]} 57... Rf3 {[%clk 0:00:01.4]} 58. Rxf7+ {[%clk 0:00:41.1]}
58... Kh6 {[%clk 0:00:01.2]} 59. Ke7 {[%clk 0:00:38.1]} 59... Kh5 {[%clk
0:00:01]} 60. Rf6 {[%clk 0:00:32.8]} 60... Kxh4 {[%clk 0:00:01.1]} 61. Rxg6
{[%clk 0:00:33.1]} 61... Rxf4 {[%clk 0:00:01.4]} 62. e6 {[%clk 0:00:33.5]} 62...
Kh5 {[%clk 0:00:01.8]} 63. Rg1 {[%clk 0:00:30.9]} 63... Kh6 {[%clk 0:00:02.1]}
64. Ke8 {[%clk 0:00:30.4]} 64... Kh7 {[%clk 0:00:01.3]} 65. e7 {[%clk
0:00:30.9]} 65... Ra4 {[%clk 0:00:01.6]} 66. Rg5 {[%clk 0:00:28.7]} 66... Re4
{[%clk 0:00:01]} 67. Kf7 {[%clk 0:00:28.1]} 67... Rf4+ {[%clk 0:00:01]} 68. Ke6
{[%clk 0:00:28.2]} 68... Re4+ {[%clk 0:00:01.1]} 69. Re5 {[%clk 0:00:27.5]}
69... Rg4 {[%clk 0:00:01]} 70. e8=Q {[%clk 0:00:27.4]} 70... Rg6+ {[%clk
0:00:01.9]} 71. Kd5 {[%clk 0:00:25]} 71... Rg7 {[%clk 0:00:01.4]} 72. Rh5#
{[%clk 0:00:24.7]} 1-0

[Event "Early-Titled-Tuesday-Blitz-July-09-2024"]
[Site "Chess.com"]
[Date "2024.07.09"]
[Round "8"]
[White "pinguino120"]
[Black "abelmat"]
[Result "1-0"]
[WhiteElo "2302"]
[BlackElo "2113"]
[TimeControl "180+1"]
[EndTime "9:30:53 PDT"]
[Termination "pinguino120 won by checkmate"]

1. e4 {[%clk 0:03:00.9]} 1... e6 {[%clk 0:02:59.3]} 2. d3 {[%clk 0:02:57.6]}
2... d5 {[%clk 0:03:00.2]} 3. Nd2 {[%clk 0:02:54.9]} 3... Nc6 {[%clk 0:02:58.3]}
4. g3 {[%clk 0:02:49.7]} 4... Nf6 {[%clk 0:02:58.5]} 5. Bg2 {[%clk 0:02:49.8]}
5... dxe4 {[%clk 0:02:57.9]} 6. dxe4 {[%clk 0:02:47.4]} 6... e5 {[%clk 0:02:58]}
7. Ngf3 {[%clk 0:02:47.6]} 7... a5 {[%clk 0:02:57.9]} 8. O-O {[%clk 0:02:47.6]}
8... Bc5 {[%clk 0:02:58.3]} 9. c3 {[%clk 0:02:33.5]} 9... O-O {[%clk 0:02:58]}
10. h3 {[%clk 0:02:33.8]} 10... b6 {[%clk 0:02:58]} 11. Kh2 {[%clk 0:02:33.9]}
11... Ba6 {[%clk 0:02:58]} 12. c4 {[%clk 0:02:32]} 12... Qe7 {[%clk 0:02:49]}
13. b3 {[%clk 0:02:21.4]} 13... Rad8 {[%clk 0:02:47.7]} 14. Qe2 {[%clk
0:02:20.8]} 14... Nd4 {[%clk 0:02:44.3]} 15. Nxd4 {[%clk 0:02:20.4]} 15... Bxd4
{[%clk 0:02:32.9]} 16. Rb1 {[%clk 0:02:20.4]} 16... Rd6 {[%clk 0:02:20.9]} 17.
Nf3 {[%clk 0:02:19.2]} 17... Rfd8 {[%clk 0:02:15.7]} 18. Bg5 {[%clk 0:02:18.1]}
18... h6 {[%clk 0:01:59]} 19. Bxf6 {[%clk 0:02:17.3]} 19... Qxf6 {[%clk
0:01:56.2]} 20. Rbd1 {[%clk 0:02:17.6]} 20... Bc8 {[%clk 0:01:48.2]} 21. Rd2
{[%clk 0:02:03.8]} 21... Bc3 {[%clk 0:01:44.9]} 22. Rd5 {[%clk 0:01:54.3]} 22...
Be6 {[%clk 0:01:35.6]} 23. Rxd6 {[%clk 0:01:52.5]} 23... Rxd6 {[%clk 0:01:34.4]}
24. Rd1 {[%clk 0:01:52.6]} 24... Qd8 {[%clk 0:01:29.8]} 25. Rxd6 {[%clk
0:01:50.3]} 25... Qxd6 {[%clk 0:01:29.1]} 26. Bf1 {[%clk 0:01:50]} 26... Qa3
{[%clk 0:01:21]} 27. Qc2 {[%clk 0:01:38.5]} 27... Bd4 {[%clk 0:01:13.5]} 28.
Nxd4 {[%clk 0:01:38.1]} 28... exd4 {[%clk 0:01:14.4]} 29. f4 {[%clk 0:01:36.8]}
29... f6 {[%clk 0:01:00.2]} 30. e5 {[%clk 0:01:22.7]} 30... fxe5 {[%clk
0:00:50.8]} 31. fxe5 {[%clk 0:01:23.6]} 31... Qf8 {[%clk 0:00:47.4]} 32. Bg2
{[%clk 0:01:12.7]} 32... c5 {[%clk 0:00:46.1]} 33. Bd5 {[%clk 0:01:06.5]} 33...
Qf7 {[%clk 0:00:41.6]} 34. Qe4 {[%clk 0:00:54.9]} 34... Kf8 {[%clk 0:00:34.3]}
35. Kg2 {[%clk 0:00:51.2]} 35... Ke7 {[%clk 0:00:25.9]} 36. g4 {[%clk 0:00:29]}
36... Kd7 {[%clk 0:00:22]} 37. Bb7 {[%clk 0:00:25.9]} 37... Kd8 {[%clk
0:00:19.5]} 38. Qc6 {[%clk 0:00:25.2]} 38... Bd7 {[%clk 0:00:16]} 39. Qd6 {[%clk
0:00:24]} 39... Ke8 {[%clk 0:00:14.7]} 40. Bd5 {[%clk 0:00:23.3]} 40... Qf4
{[%clk 0:00:13.2]} 41. Qg6+ {[%clk 0:00:16.4]} 41... Kd8 {[%clk 0:00:12.3]} 42.
Qxb6+ {[%clk 0:00:16.5]} 42... Ke8 {[%clk 0:00:11.8]} 43. Qg6+ {[%clk
0:00:16.4]} 43... Kd8 {[%clk 0:00:10.1]} 44. e6 {[%clk 0:00:12.7]} 44... Qd2+
{[%clk 0:00:08.6]} 45. Kg3 {[%clk 0:00:11.8]} 45... Qe1+ {[%clk 0:00:08]} 46.
Kf4 {[%clk 0:00:10.6]} 46... Be8 {[%clk 0:00:08.1]} 47. Qe4 {[%clk 0:00:08.1]}
47... Qf2+ {[%clk 0:00:07.7]} 48. Ke5 {[%clk 0:00:08.4]} 48... Qg3+ {[%clk
0:00:06.9]} 49. Qf4 {[%clk 0:00:08.3]} 49... Qe1+ {[%clk 0:00:06.2]} 50. Kd6
{[%clk 0:00:08.2]} 50... Qh4 {[%clk 0:00:06.7]} 51. Kxc5 {[%clk 0:00:05.8]}
51... Qe7+ {[%clk 0:00:06.9]} 52. Qd6+ {[%clk 0:00:05.4]} 52... Qxd6+ {[%clk
0:00:06.7]} 53. Kxd6 {[%clk 0:00:06.3]} 53... d3 {[%clk 0:00:06.1]} 54. Bf3
{[%clk 0:00:06.1]} 54... d2 {[%clk 0:00:06.9]} 55. e7+ {[%clk 0:00:06.1]} 55...
Kc8 {[%clk 0:00:06.1]} 56. c5 {[%clk 0:00:06.4]} 56... h5 {[%clk 0:00:05]} 57.
gxh5 {[%clk 0:00:06]} 57... Bc6 {[%clk 0:00:04.7]} 58. Kxc6 {[%clk 0:00:05.3]}
58... d1=Q {[%clk 0:00:04.3]} 59. Bxd1 {[%clk 0:00:05]} 59... g5 {[%clk
0:00:04.8]} 60. e8=Q# {[%clk 0:00:04.3]} 1-0